{"text_format":"2","workbook":"xlsx","n_sheets":3,"sheets":["Лист1","Лист2","Лист3"],"not_rendered":{"charts":0,"images":0,"macros":0,"external_links":0,"defined_names":2,"comments":0,"pivot_tables":0},"unopened":[],"bounds":{"document_bytes":16777216,"sheet_cells":100000,"run_cost":"one","rows_first":2000,"rows_last":500,"rows_between":2000,"halvings":0,"cell_chars":16384,"cell_head_chars":4096},"cells_cut":0,"cells_raw":0,"read":"whole","date_system":"1900"}

{"sheet":"Лист1","index":0,"n_rows":15,"n_cols":75,"rows_kept":15,"cut":false,"hidden":false,"merged":[[4,63,5,64],[4,46,5,47],[4,72,5,74],[4,69,5,69],[4,29,5,30],[4,35,5,36],[4,37,5,38],[4,31,5,31],[4,34,5,34],[4,39,5,40],[4,43,5,43],[4,44,5,45],[4,50,5,50],[4,51,5,52],[4,53,5,54],[4,57,5,58],[4,61,5,62],[4,27,5,28],[4,3,5,4],[4,5,5,6],[4,7,5,8],[4,9,5,10],[4,11,5,12],[4,21,5,22],[4,17,5,18],[4,13,4,16],[5,13,5,14],[5,15,5,16],[4,25,5,26],[4,70,5,71],[4,65,5,66],[4,23,5,24],[4,2,6,2],[0,0,0,10],[1,0,1,10],[2,0,2,10],[4,19,5,20],[4,32,5,33],[4,41,5,42],[4,48,5,49],[4,55,5,56],[4,59,5,60],[4,67,5,68],[4,0,6,0],[4,1,6,1]]}
["Отчет"]
["  о результатах мониторинга качества финансового менеджмента, осуществляемого главными администраторами средств районного бюджета"]
["за 2018 год"]
[]
["№","Наименование главного администратора средств районного бюджета","КВСР","1.1. Своевременность представления предварительного (планового) реестра расходных обязательств",null,"1.2. Полнота информации о расходных обязательствах",null,"1.3. Сроки представления обоснований бюджетных ассигнований на очередной финансовый год",null,"1.4. Охват в обоснованиях бюджетных ассигнований на очередной финансовый год",null,"1.5. Доля бюджетных ассигнований, представленных в программном виде",null,"1.6. Сумма внесенных изменений в бюджетную роспись в связи с уточнением ассигнований по решению Земского собрания",null,null,null,"1.7. Сумма внесенных положительных изменений в бюджетную роспись в отчетном периоде в связи с передвижками между кодами бюджетной классификации",null,"1. Финансовое планирование",null,"2.1. Кассовое исполнение расходов ",null,"2.2. Равномерность осуществляемых расходов",null,"2.3. Своевременность принятия бюджетных обязательств",null,"2.4. Качество прогнозирования кассовых расходов",null,"2.5. Уровень подготовки платежных документов",null,"2.6. Качество исполнения расходов","2. Исполнение бюджета в части расходов",null,"3.1. Качество правовой базы главного администратора доходов районного бюджета по администрированию доходов","3.2. Полнота зачисления платежей в районный бюджет по главному администратору доходов районного бюджета, объем невыясненных поступлений",null,"3.3.  Отклонение кассового исполнения по доходам от прогноза по главному администратору доходов районного бюджета",null,"3.4. Эффективность управления дебиторской задолженностью по расчетам с дебиторами по доходам",null,"3.Исполнение бюджета в части доходов",null,"4.1. Подготовка и внедрение управленческого учета","4.2. Динамика объема материальных запасов",null,"4.3.  Коэффициент сложности исполнения бюджетных ассигнований",null,"4. Учет и отчетность",null,"5.1. Осуществление мероприятий внутреннего контроля","5.2. Регулярность проведения ГРБС мероприятий муниципального контроля",null,"5.3. Доля недостач и хищений денежных средств и материальных ценностей",null,"5. Контроль и аудит",null,"6.1. Качество исполнения бюджетных обязательств",null,"6. Исполнение судебных актов",null,"7.1. Исполнение планов финансово-хозяйственной деятельности (далее-ФХД) по доходам (по всем видам финансового обеспечения)",null,"7.2. Равномерность расходов, осуществляемых бюджетными и автономными учреждениями за счет субсидий на выполнение муниципальных заданий",null,"7.3. Уровень использования субсидий бюджетными и автономными учреждениями, предоставленных на выполнение муниципального заданий",null,"7.4. Уровень подготовки платежных документов бюджетными и автономными учреждениями",null,"7.5. Качество осуществления расходов бюджетными и автономными учреждениями","7. Бюджетные и автономные учреждения",null,"И Т О Г О                                                                                                                    по главному администратору средств                                     районного бюджета"]
[{"$nulls":13},"положительных",null,"отрицательных"]
[null,null,null,"значение показателя","количество баллов","значение показателя","количество баллов","значение показателя","количество баллов","значение показателя","количество баллов","значение показателя","количество баллов","значение показателя","количество баллов","значение показателя","количество баллов","значение показателя","количество баллов","значение показателя","количество баллов","значение показателя","количество баллов","значение показателя","количество баллов","значение показателя","количество баллов","значение показателя","количество баллов","значение показателя","количество баллов","количество баллов","значение показателя","количество баллов","количество баллов","значение показателя","количество баллов","значение показателя","количество баллов","значение показателя","количество баллов","значение показателя","количество баллов","количество баллов","значение показателя","количество баллов","значение показателя","количество баллов","значение показателя","количество баллов","количество баллов","значение показателя","количество баллов","значение показателя","количество баллов","значение показателя","количество баллов","значение показателя","количество баллов","значение показателя","количество баллов","значение показателя","количество баллов","значение показателя","количество баллов","значение показателя","количество баллов","значение показателя","количество баллов","количество баллов","значение показателя","количество баллов","количество баллов","max возможная сумма баллов","Общий показатель качества финансового менеджмента главного администратра средств районного бюджета (гр.59/гр.60)*100%"]
[1,2,3,4,5,6,7,8,9,10,11,12,13,14,15,16,17,18,19,20,21,22,23,24,25,26,27,28,29,30,31,32,33,34,35,36,37,38,39,40,41,42,43,44,45,46,47,48,49,50,51,52,53,54,55,56,57,58,59,60,61,62,63,64,65,66,67,68,69,70,71,72,73,74,75]
[null,"1 группа"]
[1,"Администрация района",487,0,5,0,5,0,5,100,5,58.9,0,94.3,8,103.3,4,98.7,10,{"$f":"D10+F10+H10+J10+L10+N10+P10+R10","v":455.2},{"$f":"E10+G10+I10+K10+M10+O10+Q10+S10","v":42},99.8,10,27.4,10,100,10,99.8,10,97.6,7,10,{"$f":"V10+X10+Z10+AB10+AD10","v":424.6},{"$f":"W10+Y10+AA10+AC10+AE10+AF10","v":57},8,0,5,-22.7,0,225.1,0,{"$f":"AJ10+AL10+AN10","v":202.4},{"$f":"AI10+AK10+AM10+AO10","v":13},10,97.3,0,55,3,{"$f":"AS10+AU10","v":152.30000000000001},{"$f":"AR10+AT10+AV10","v":13},5,1,5,0,5,{"$f":"AZ10+BB10","v":1},{"$f":"AY10+BA10+BC10","v":15},0,5,{"$f":"BF10","v":0},{"$f":"BG10","v":5},98.9,8,20.399999999999999,10,99.4,10,96.7,7,8.6999999999999993,{"$f":"BJ10+BL10+BN10+BP10","v":315.40000000000003},{"$f":"BK10+BM10+BO10+BQ10+BR10","v":43.7},{"$f":"U10+AH10+AQ10+AX10+BE10+BI10+BT10","v":188.7},255,{"$f":"SUM(BU10/BV10)*100","v":74}]
[2,"Управление образования и молодежной политики","074",0,5,0,5,0,5,100,5,99.9,10,97.5,10,100.4,4,98,10,{"$f":"D11+F11+H11+J11+L11+N11+P11+R11","v":495.79999999999995},{"$f":"E11+G11+I11+K11+M11+O11+Q11+S11","v":54},99.6,10,21.8,10,99.2,10,99.6,10,97.7,7,10,{"$f":"V11+X11+Z11+AB11+AD11","v":417.9},{"$f":"W11+Y11+AA11+AC11+AE11+AF11","v":57},8,0,5,-0.8,10,0,10,{"$f":"AJ11+AL11+AN11","v":-0.8},{"$f":"AI11+AK11+AM11+AO11","v":33},10,109.8,0,877,6,986.8,{"$f":"AR11+AT11+AV11","v":16},5,3,5,0,5,{"$f":"AZ11+BB11","v":3},{"$f":"AY11+BA11+BC11","v":15},0,5,{"$f":"BF11","v":0},{"$f":"BG11","v":5},98.9,8,38,5,98,10,92,7,7.3,{"$f":"BJ11+BL11+BN11+BP11","v":326.89999999999998},{"$f":"BK11+BM11+BO11+BQ11+BR11","v":37.299999999999997},{"$f":"U11+AH11+AQ11+AX11+BE11+BI11+BT11","v":217.3},255,{"$f":"SUM(BU11/BV11)*100","v":85.215686274509807}]
[3,"Отдел культуры","057",0,5,0,5,0,5,100,5,96.2,10,98.5,10,100.3,4,100,10,495,54,99.9,10,15.3,10,97.2,10,99.9,10,98.5,7,10,410.8,57,8,0,5,-8.6999999999999993,10,0,10,-8.6999999999999993,33,10,0,10,893,10,893,30,5,2,5,0,5,2,15,0,5,0,5,99.8,8,20.9,10,98.7,10,99.3,7,8.6999999999999993,318.7,43.7,237.7,255,{"$f":"SUM(BU12/BV12)*100","v":93.215686274509807}]
[null,"2 группа"]
[1,"Финансовое управление","001",0,5,0,5,0,5,100,5,100,10,96.7,10,105.7,8,99.9,10,502.29999999999995,58,99.4,10,7,10,99.1,10,100,10,100,10,10,405.5,60,8,0,5,0,10,0,10,0,33,10,39.299999999999997,0,52.1,3,91.4,13,5,10,5,0,5,10,15,0,5,0,5,{"$nulls":11},184,205,{"$f":"SUM(BU14/BV14)*100","v":89.756097560975618}]
[2,"Управление сельского хозяйства","082",0,5,0,5,0,5,100,5,100,10,100,10,100.1,4,99.9,10,500,54,100,10,-68.599999999999994,10,100,10,100,10,82.7,7,10,314.10000000000002,57,8,0,5,0,10,0,10,0,33,10,325,0,164.2,6,489.2,16,5,6,5,0,5,6,15,0,5,0,5,{"$nulls":11},180,205,{"$f":"SUM(BU15/BV15)*100","v":87.804878048780495}]

{"sheet":"Лист2","index":1,"n_rows":0,"n_cols":0,"rows_kept":0,"cut":false,"hidden":false,"merged":[]}

{"sheet":"Лист3","index":2,"n_rows":0,"n_cols":0,"rows_kept":0,"cut":false,"hidden":false,"merged":[]}